[Event "Titled Tuesday Blitz June 6 Late 2023"]
[White "Di Benedetto, Edoardo"]
[Black "Przybylski, Wojciech"]
[WhiteFideId "875740"]
[BlackFideId "1117599"]
[WhiteElo "2296"]
[BlackElo "2228"]
[Result "1-0"]
[Round "1"]
[TimeControl "180+2"]
[Date "2023.06.07"]
[WhiteClock "0:01:27"]
[BlackClock "0:00:13"]
[Board "80"]

1. d4 {[%clk 0:02:59]}  Nf6 {[%clk 0:02:52]} 2. c4 {[%clk 0:02:58]}  e6 {[%clk 0:02:52]} 3. Nf3 {[%clk 0:02:58]}  b6 {[%clk 0:02:51]} 4. g3 {[%clk 0:02:57]}  Ba6 {[%clk 0:02:50]} 5. b3 {[%clk 0:02:57]}  Bb4+ {[%clk 0:02:50]} 6. Bd2 {[%clk 0:02:56]}  Be7 {[%clk 0:02:50]} 7. Bg2 {[%clk 0:02:56]}  O-O {[%clk 0:02:49]} 8. Bc3 {[%clk 0:02:53]}  d5 {[%clk 0:02:48]} 9. Nbd2 {[%clk 0:02:53]}  c5 {[%clk 0:02:43]} 10. O-O {[%clk 0:02:53]}  Nc6 {[%clk 0:02:42]} 11. dxc5 {[%clk 0:02:44]}  bxc5 {[%clk 0:02:42]} 12. cxd5 {[%clk 0:02:40]}  exd5 {[%clk 0:02:33]} 13. Rc1 {[%clk 0:02:40]}  Rc8 {[%clk 0:02:31]} 14. Bxf6 {[%clk 0:02:35]}  gxf6 {[%clk 0:02:30]} 15. Re1 {[%clk 0:02:33]}  Ne5 {[%clk 0:02:25]} 16. Nh4 {[%clk 0:02:29]}  Qd7 {[%clk 0:02:23]} 17. f4 {[%clk 0:02:18]}  Nc6 {[%clk 0:02:15]} 18. e4 {[%clk 0:02:15]}  d4 {[%clk 0:01:57]} 19. Nf5 {[%clk 0:02:12]}  Kh8 {[%clk 0:01:55]} 20. Bh3 {[%clk 0:02:09]}  Rg8 {[%clk 0:01:42]} 21. Qh5 {[%clk 0:02:05]}  Rg6 {[%clk 0:01:38]} 22. Nxe7 {[%clk 0:01:56]}  Qxe7 {[%clk 0:01:34]} 23. Bxc8 {[%clk 0:01:56]}  Bxc8 {[%clk 0:01:27]} 24. Qxc5 {[%clk 0:01:55]}  Qxc5 {[%clk 0:00:56]} 25. Rxc5 {[%clk 0:01:55]}  Bd7 {[%clk 0:00:57]} 26. Rec1 {[%clk 0:01:53]}  Nb4 {[%clk 0:00:53]} 27. Rc7 {[%clk 0:01:43]}  Bg4 {[%clk 0:00:48]} 28. R1c4 {[%clk 0:01:41]}  Nxa2 {[%clk 0:00:32]} 29. Rxd4 {[%clk 0:01:41]}  f5 {[%clk 0:00:31]} 30. Rxf7 {[%clk 0:01:39]}  Rg8 {[%clk 0:00:19]} 31. Rdd7 {[%clk 0:01:34]}  Rc8 {[%clk 0:00:18]} 32. Rxh7+ {[%clk 0:01:34]}  Kg8 {[%clk 0:00:18]} 33. Rdg7+ {[%clk 0:01:35]}  Kf8 {[%clk 0:00:18]} 34. Rh8+ {[%clk 0:01:36]}  Kxg7 {[%clk 0:00:18]} 35. Rxc8 {[%clk 0:01:36]}  fxe4 {[%clk 0:00:18]} 36. Rc7+ {[%clk 0:01:37]}  Kg6 {[%clk 0:00:18]} 37. Nxe4 {[%clk 0:01:35]}  Nb4 {[%clk 0:00:17]} 38. Nf2 {[%clk 0:01:33]}  Bf3 {[%clk 0:00:16]} 39. Rxa7 {[%clk 0:01:32]}  Nd5 {[%clk 0:00:15]} 40. h3 {[%clk 0:01:29]}  Kf5 {[%clk 0:00:15]} 41. Ra5 {[%clk 0:01:28]}  Kg6 {[%clk 0:00:15]} 42. Nd3 {[%clk 0:01:27]}  Nc3 {[%clk 0:00:13]} 43. Ne5+ {[%clk 0:01:27]} 1-0


[Site "https://www.chess.com"]

[Event "Titled Tuesday Blitz June 6 Late 2023"]
[White "Dedona, Mark"]
[Black "Wagner, Dennis"]
[WhiteFideId "30920256"]
[BlackFideId "24650684"]
[WhiteElo "2074"]
[BlackElo "2478"]
[Result "0-1"]
[Round "1"]
[TimeControl "180+2"]
[Date "2023.06.07"]
[WhiteClock "0:01:21"]
[BlackClock "0:00:23"]
[Board "81"]

1. e4 {[%clk 0:02:55]}  e5 {[%clk 0:03:00]} 2. Nc3 {[%clk 0:02:52]}  Nf6 {[%clk 0:02:59]} 3. f4 {[%clk 0:02:48]}  d5 {[%clk 0:02:57]} 4. fxe5 {[%clk 0:02:48]}  Nxe4 {[%clk 0:02:57]} 5. Qf3 {[%clk 0:02:49]}  Nc6 {[%clk 0:02:51]} 6. Bb5 {[%clk 0:02:48]}  Nxc3 {[%clk 0:02:49]} 7. bxc3 {[%clk 0:02:45]}  Qh4+ {[%clk 0:02:45]} 8. g3 {[%clk 0:02:45]}  Qe4+ {[%clk 0:02:45]} 9. Qxe4 {[%clk 0:02:44]}  dxe4 {[%clk 0:02:46]} 10. Ne2 {[%clk 0:02:40]}  Bd7 {[%clk 0:02:46]} 11. Bxc6 {[%clk 0:02:40]}  Bxc6 {[%clk 0:02:45]} 12. Nd4 {[%clk 0:02:40]}  Bd5 {[%clk 0:02:33]} 13. Rf1 {[%clk 0:02:35]}  g6 {[%clk 0:02:16]} 14. d3 {[%clk 0:02:14]}  exd3 {[%clk 0:02:10]} 15. cxd3 {[%clk 0:02:14]}  Bg7 {[%clk 0:02:04]} 16. Bf4 {[%clk 0:02:14]}  O-O-O {[%clk 0:02:01]} 17. Kf2 {[%clk 0:02:08]}  Rhe8 {[%clk 0:01:48]} 18. Rfe1 {[%clk 0:02:05]}  h6 {[%clk 0:01:46]} 19. h4 {[%clk 0:02:04]}  a6 {[%clk 0:01:44]} 20. c4 {[%clk 0:02:00]}  Bxc4 {[%clk 0:01:40]} 21. dxc4 {[%clk 0:02:01]}  Rxd4 {[%clk 0:01:40]} 22. Rac1 {[%clk 0:02:00]}  Kd7 {[%clk 0:01:23]} 23. Ke3 {[%clk 0:01:57]}  c5 {[%clk 0:01:20]} 24. Red1 {[%clk 0:01:55]}  Bxe5 {[%clk 0:01:18]} 25. Rxd4+ {[%clk 0:01:52]}  Bxd4+ {[%clk 0:01:14]} 26. Kf3 {[%clk 0:01:51]}  h5 {[%clk 0:01:12]} 27. Rb1 {[%clk 0:01:50]}  Kc6 {[%clk 0:01:12]} 28. a4 {[%clk 0:01:50]}  b6 {[%clk 0:01:09]} 29. Rd1 {[%clk 0:01:47]}  b5 {[%clk 0:01:05]} 30. axb5+ {[%clk 0:01:45]}  axb5 {[%clk 0:01:06]} 31. cxb5+ {[%clk 0:01:45]}  Kxb5 {[%clk 0:01:07]} 32. Rb1+ {[%clk 0:01:46]}  Kc6 {[%clk 0:01:08]} 33. Rc1 {[%clk 0:01:44]}  Kd5 {[%clk 0:01:06]} 34. Rb1 {[%clk 0:01:41]}  Re7 {[%clk 0:01:04]} 35. Rb8 {[%clk 0:01:40]}  Kc4 {[%clk 0:01:02]} 36. Rc8 {[%clk 0:01:31]}  Kd3 {[%clk 0:00:59]} 37. Bd6 {[%clk 0:01:29]}  Re3+ {[%clk 0:00:59]} 38. Kf4 {[%clk 0:01:29]}  c4 {[%clk 0:00:56]} 39. Bb4 {[%clk 0:01:29]}  Be5+ {[%clk 0:00:48]} 40. Kg5 {[%clk 0:01:29]}  Rxg3+ {[%clk 0:00:48]} 41. Kh6 {[%clk 0:01:29]}  Rg4 {[%clk 0:00:47]} 42. Rf8 {[%clk 0:01:28]}  f5 {[%clk 0:00:42]} 43. Re8 {[%clk 0:01:27]}  Bd4 {[%clk 0:00:42]} 44. Be7 {[%clk 0:01:25]}  c3 {[%clk 0:00:37]} 45. Bg5 {[%clk 0:01:25]}  c2 {[%clk 0:00:36]} 46. Rc8 {[%clk 0:01:24]}  Rxg5 {[%clk 0:00:28]} 47. Kxg5 {[%clk 0:01:22]}  Bc3 {[%clk 0:00:28]} 48. Rd8+ {[%clk 0:01:22]}  Ke2 {[%clk 0:00:27]} 49. Kxg6 {[%clk 0:01:22]}  c1=Q {[%clk 0:00:27]} 50. Kxf5 {[%clk 0:01:22]}  Qc2+ {[%clk 0:00:23]} 51. Kg5 {[%clk 0:01:22]}  Bd2+ {[%clk 0:00:23]} 52. Kxh5 {[%clk 0:01:21]}  Qf5# {[%clk 0:00:23]} 0-1


[Site "https://www.chess.com"]

[Event "Titled Tuesday Blitz June 6 Late 2023"]
[White "Tanenbaum, Zachary"]
[Black "Buchenau, Frank"]
[WhiteFideId "2060850"]
[BlackFideId "4604350"]
[WhiteElo "2207"]
[BlackElo "2157"]
[Result "1-0"]
[Round "1"]
[TimeControl "180+2"]
[Date "2023.06.07"]
[WhiteClock "0:02:33"]
[BlackClock "0:02:31"]
[Board "82"]

1. e4 {[%clk 0:02:46]}  e6 {[%clk 0:03:00]} 2. d4 {[%clk 0:02:46]}  d5 {[%clk 0:03:00]} 3. Nc3 {[%clk 0:02:46]}  Nf6 {[%clk 0:03:00]} 4. Bg5 {[%clk 0:02:46]}  dxe4 {[%clk 0:03:00]} 5. Nxe4 {[%clk 0:02:45]}  Be7 {[%clk 0:03:01]} 6. Bxf6 {[%clk 0:02:46]}  gxf6 {[%clk 0:03:01]} 7. Nf3 {[%clk 0:02:46]}  f5 {[%clk 0:03:01]} 8. Nc3 {[%clk 0:02:46]}  a6 {[%clk 0:03:02]} 9. Qe2 {[%clk 0:02:46]}  Qd6 {[%clk 0:02:56]} 10. O-O-O {[%clk 0:02:46]}  Nd7 {[%clk 0:02:56]} 11. g3 {[%clk 0:02:42]}  b5 {[%clk 0:02:53]} 12. Bg2 {[%clk 0:02:40]}  Bb7 {[%clk 0:02:53]} 13. Rhe1 {[%clk 0:02:38]}  O-O-O {[%clk 0:02:53]} 14. d5 {[%clk 0:02:36]}  e5 {[%clk 0:02:46]} 15. Nxe5 {[%clk 0:02:35]}  Nxe5 {[%clk 0:02:43]} 16. Qxe5 {[%clk 0:02:36]}  Bf6 {[%clk 0:02:34]} 17. Qxf5+ {[%clk 0:02:35]}  Kb8 {[%clk 0:02:34]} 18. Ne4 {[%clk 0:02:35]}  Qe5 {[%clk 0:02:31]} 19. Qxf6 {[%clk 0:02:33]} 1-0


[Site "https://www.chess.com"]

[Event "Titled Tuesday Blitz June 6 Late 2023"]
[White "Sun, Rick"]
[Black "Ansh M Shah"]
[WhiteFideId "30909481"]
[BlackFideId "25033379"]
[WhiteElo "2169"]
[BlackElo "2084"]
[Result "0-1"]
[Round "1"]
[TimeControl "180+2"]
[Date "2023.06.07"]
[WhiteClock "0:00:35"]
[BlackClock "0:00:11"]
[Board "84"]

1. e4 {[%clk 0:03:00]}  c6 {[%clk 0:03:00]} 2. d4 {[%clk 0:02:59]}  d5 {[%clk 0:03:01]} 3. f3 {[%clk 0:03:00]}  dxe4 {[%clk 0:03:01]} 4. fxe4 {[%clk 0:03:01]}  e5 {[%clk 0:03:01]} 5. Nf3 {[%clk 0:03:01]}  Bg4 {[%clk 0:03:01]} 6. Bc4 {[%clk 0:03:01]}  Nd7 {[%clk 0:03:01]} 7. O-O {[%clk 0:02:56]}  Ngf6 {[%clk 0:02:57]} 8. Nbd2 {[%clk 0:02:51]}  Bd6 {[%clk 0:02:42]} 9. c3 {[%clk 0:02:49]}  O-O {[%clk 0:02:42]} 10. Qe1 {[%clk 0:02:46]}  b5 {[%clk 0:02:37]} 11. Bb3 {[%clk 0:02:40]}  a5 {[%clk 0:02:37]} 12. a3 {[%clk 0:02:37]}  a4 {[%clk 0:02:35]} 13. Ba2 {[%clk 0:02:37]}  Qb6 {[%clk 0:02:34]} 14. Kh1 {[%clk 0:02:32]}  Rae8 {[%clk 0:02:32]} 15. Qh4 {[%clk 0:02:26]}  Bxf3 {[%clk 0:02:27]} 16. Nxf3 {[%clk 0:02:16]}  exd4 {[%clk 0:02:16]} 17. Ng5 {[%clk 0:02:16]}  h6 {[%clk 0:02:13]} 18. Nxf7 {[%clk 0:01:51]}  Rxf7 {[%clk 0:02:14]} 19. Bxh6 {[%clk 0:01:44]}  dxc3 {[%clk 0:00:51]} 20. bxc3 {[%clk 0:01:28]}  Re7 {[%clk 0:00:51]} 21. Qg5 {[%clk 0:01:14]}  Kh8 {[%clk 0:00:36]} 22. Rxf6 {[%clk 0:00:44]}  Rxf6 {[%clk 0:00:17]} 23. Bxg7+ {[%clk 0:00:41]}  Rxg7 {[%clk 0:00:17]} 24. Qh5+ {[%clk 0:00:41]}  Rh7 {[%clk 0:00:15]} 25. Qe8+ {[%clk 0:00:41]}  Rf8 {[%clk 0:00:14]} 26. Qxf8+ {[%clk 0:00:35]}  Nxf8 {[%clk 0:00:12]} 27. g3 {[%clk 0:00:36]}  Qf2 {[%clk 0:00:11]} 28. Rg1 {[%clk 0:00:35]}  Qxh2# {[%clk 0:00:11]} 0-1


[Site "https://www.chess.com"]

[Event "Titled Tuesday Blitz June 6 Late 2023"]
[White "marik_spb"]
[Black "Shuvalova, Polina"]
[BlackFideId "24171760"]
[WhiteElo "2408"]
[BlackElo "2281"]
[Result "1/2-1/2"]
[Round "1"]
[TimeControl "180+2"]
[Date "2023.06.07"]
[WhiteClock "0:00:05"]
[BlackClock "0:00:45"]
[Board "89"]

1. d4 {[%clk 0:02:59]}  Nf6 {[%clk 0:02:59]} 2. c4 {[%clk 0:02:59]}  e6 {[%clk 0:02:59]} 3. g3 {[%clk 0:02:59]}  d5 {[%clk 0:02:59]} 4. Nf3 {[%clk 0:02:59]}  Be7 {[%clk 0:02:59]} 5. Bg2 {[%clk 0:03:00]}  O-O {[%clk 0:03:00]} 6. O-O {[%clk 0:03:00]}  c6 {[%clk 0:03:01]} 7. Nbd2 {[%clk 0:02:57]}  Nbd7 {[%clk 0:03:00]} 8. Qc2 {[%clk 0:02:57]}  b6 {[%clk 0:02:58]} 9. Rd1 {[%clk 0:02:54]}  Bb7 {[%clk 0:02:58]} 10. e4 {[%clk 0:02:55]}  Rc8 {[%clk 0:02:57]} 11. e5 {[%clk 0:02:43]}  Ne8 {[%clk 0:02:57]} 12. cxd5 {[%clk 0:02:26]}  cxd5 {[%clk 0:02:56]} 13. Qd3 {[%clk 0:02:20]}  Nc7 {[%clk 0:02:56]} 14. Nf1 {[%clk 0:01:59]}  b5 {[%clk 0:02:49]} 15. h4 {[%clk 0:01:43]}  Re8 {[%clk 0:02:47]} 16. Bg5 {[%clk 0:01:43]}  h6 {[%clk 0:02:46]} 17. Bxe7 {[%clk 0:01:42]}  Qxe7 {[%clk 0:02:47]} 18. Rac1 {[%clk 0:01:42]}  b4 {[%clk 0:02:45]} 19. Ne3 {[%clk 0:01:41]}  Nf8 {[%clk 0:02:38]} 20. Rc5 {[%clk 0:01:39]}  Nd7 {[%clk 0:02:37]} 21. Rc2 {[%clk 0:01:36]}  Ba6 {[%clk 0:02:33]} 22. Qd2 {[%clk 0:01:34]}  Nb5 {[%clk 0:02:29]} 23. Rdc1 {[%clk 0:01:31]}  Rxc2 {[%clk 0:02:23]} 24. Rxc2 {[%clk 0:01:32]}  Rc8 {[%clk 0:02:23]} 25. Bf1 {[%clk 0:01:24]}  Nb6 {[%clk 0:02:06]} 26. Rxc8+ {[%clk 0:01:15]}  Nxc8 {[%clk 0:02:07]} 27. Nc2 {[%clk 0:01:15]}  Nc7 {[%clk 0:02:03]} 28. Qxb4 {[%clk 0:01:11]}  Bxf1 {[%clk 0:02:01]} 29. Qxe7 {[%clk 0:01:10]}  Nxe7 {[%clk 0:02:02]} 30. Kxf1 {[%clk 0:01:11]}  Nc6 {[%clk 0:02:02]} 31. Ke2 {[%clk 0:01:07]}  f6 {[%clk 0:02:02]} 32. exf6 {[%clk 0:01:06]}  gxf6 {[%clk 0:02:03]} 33. Kd3 {[%clk 0:01:06]}  Kf7 {[%clk 0:02:01]} 34. b4 {[%clk 0:01:06]}  e5 {[%clk 0:01:54]} 35. Nd2 {[%clk 0:00:52]}  Nb5 {[%clk 0:01:43]} 36. dxe5 {[%clk 0:00:31]}  fxe5 {[%clk 0:01:44]} 37. a4 {[%clk 0:00:31]}  Nd6 {[%clk 0:01:44]} 38. b5 {[%clk 0:00:28]}  Ne7 {[%clk 0:01:44]} 39. f4 {[%clk 0:00:22]}  e4+ {[%clk 0:01:43]} 40. Kd4 {[%clk 0:00:20]}  Ndf5+ {[%clk 0:01:40]} 41. Ke5 {[%clk 0:00:17]}  Nxg3 {[%clk 0:01:40]} 42. Ne3 {[%clk 0:00:15]}  Ng6+ {[%clk 0:01:14]} 43. Kxd5 {[%clk 0:00:15]}  Nxf4+ {[%clk 0:01:15]} 44. Kc6 {[%clk 0:00:11]}  Ke6 {[%clk 0:01:08]} 45. Kb7 {[%clk 0:00:11]}  Nd5 {[%clk 0:01:09]} 46. Ndf1 {[%clk 0:00:07]}  Nxf1 {[%clk 0:01:04]} 47. Nxf1 {[%clk 0:00:07]}  Nc3 {[%clk 0:00:55]} 48. Kxa7 {[%clk 0:00:04]}  Nxa4 {[%clk 0:00:56]} 49. b6 {[%clk 0:00:04]}  Nc5 {[%clk 0:00:46]} 50. b7 {[%clk 0:00:05]}  Nd7 {[%clk 0:00:47]} 51. b8=Q {[%clk 0:00:04]}  Nxb8 {[%clk 0:00:48]} 52. Kxb8 {[%clk 0:00:05]}  Kf5 {[%clk 0:00:48]} 53. Kc7 {[%clk 0:00:05]}  Kg4 {[%clk 0:00:49]} 54. Kd6 {[%clk 0:00:04]}  Kxh4 {[%clk 0:00:45]} 55. Ke5 {[%clk 0:00:04]}  Kh3 {[%clk 0:00:43]} 56. Kxe4 {[%clk 0:00:04]}  Kg2 {[%clk 0:00:44]} 57. Kf4 {[%clk 0:00:03]}  Kxf1 {[%clk 0:00:43]} 58. Kg4 {[%clk 0:00:04]}  Kg2 {[%clk 0:00:44]} 59. Kh5 {[%clk 0:00:05]}  Kf3 {[%clk 0:00:45]} 60. Kxh6 {[%clk 0:00:05]} 1/2-1/2


[Site "https://www.chess.com"]

[Event "Titled Tuesday Blitz June 6 Late 2023"]
[White "Rangel, Daniel"]
[Black "Nazari, Arad"]
[WhiteFideId "2124475"]
[BlackFideId "12577324"]
[WhiteElo "2231"]
[BlackElo "2175"]
[Result "1/2-1/2"]
[Round "1"]
[TimeControl "180+2"]
[Date "2023.06.07"]
[WhiteClock "0:00:12"]
[BlackClock "0:00:28"]
[Board "91"]

1. d4 {[%clk 0:02:55]}  Nf6 {[%clk 0:02:59]} 2. c4 {[%clk 0:02:55]}  g6 {[%clk 0:03:00]} 3. Nc3 {[%clk 0:02:50]}  d5 {[%clk 0:03:00]} 4. cxd5 {[%clk 0:02:51]}  Nxd5 {[%clk 0:03:01]} 5. Nf3 {[%clk 0:02:44]}  Bg7 {[%clk 0:03:01]} 6. e3 {[%clk 0:02:42]}  O-O {[%clk 0:02:57]} 7. Be2 {[%clk 0:02:41]}  c5 {[%clk 0:02:55]} 8. O-O {[%clk 0:02:39]}  Nc6 {[%clk 0:02:53]} 9. Bd2 {[%clk 0:02:38]}  cxd4 {[%clk 0:02:53]} 10. exd4 {[%clk 0:02:36]}  Nxd4 {[%clk 0:02:52]} 11. Nxd4 {[%clk 0:02:35]}  Bxd4 {[%clk 0:02:52]} 12. Nxd5 {[%clk 0:02:36]}  Qxd5 {[%clk 0:02:51]} 13. Bh6 {[%clk 0:02:32]}  Rd8 {[%clk 0:02:44]} 14. Bf3 {[%clk 0:02:32]}  Qd6 {[%clk 0:02:18]} 15. Qb3 {[%clk 0:02:26]}  Qb6 {[%clk 0:02:12]} 16. Qxb6 {[%clk 0:02:00]}  Bxb6 {[%clk 0:02:13]} 17. Rfe1 {[%clk 0:01:52]}  e6 {[%clk 0:02:05]} 18. Rad1 {[%clk 0:01:43]}  Rxd1 {[%clk 0:01:54]} 19. Rxd1 {[%clk 0:01:43]}  f6 {[%clk 0:01:54]} 20. h4 {[%clk 0:01:27]}  Rb8 {[%clk 0:01:52]} 21. Bf4 {[%clk 0:01:02]}  e5 {[%clk 0:01:51]} 22. Be3 {[%clk 0:01:03]}  Be6 {[%clk 0:01:39]} 23. Bxb6 {[%clk 0:01:02]}  axb6 {[%clk 0:01:40]} 24. Rd6 {[%clk 0:00:54]}  Kf7 {[%clk 0:01:29]} 25. Rxb6 {[%clk 0:00:50]}  Bxa2 {[%clk 0:01:28]} 26. Rxb7+ {[%clk 0:00:47]}  Rxb7 {[%clk 0:01:28]} 27. Bxb7 {[%clk 0:00:47]}  Ke7 {[%clk 0:01:29]} 28. g3 {[%clk 0:00:41]}  Kd6 {[%clk 0:01:28]} 29. f4 {[%clk 0:00:35]}  exf4 {[%clk 0:01:23]} 30. gxf4 {[%clk 0:00:36]}  Kc5 {[%clk 0:01:21]} 31. Kf2 {[%clk 0:00:31]}  Kd4 {[%clk 0:01:15]} 32. Bc6 {[%clk 0:00:22]}  Bb3 {[%clk 0:01:07]} 33. Kg3 {[%clk 0:00:20]}  Ke3 {[%clk 0:01:04]} 34. Be8 {[%clk 0:00:17]}  Bd1 {[%clk 0:00:41]} 35. b4 {[%clk 0:00:13]}  Kd4 {[%clk 0:00:41]} 36. b5 {[%clk 0:00:13]}  Kc5 {[%clk 0:00:41]} 37. f5 {[%clk 0:00:14]}  Bc2 {[%clk 0:00:27]} 38. fxg6 {[%clk 0:00:11]}  Bxg6 {[%clk 0:00:28]} 39. Bc6 {[%clk 0:00:09]}  h6 {[%clk 0:00:23]} 40. Kf4 {[%clk 0:00:09]}  Bd3 {[%clk 0:00:23]} 41. Be8 {[%clk 0:00:07]}  Bxb5 {[%clk 0:00:18]} 42. Bxb5 {[%clk 0:00:06]}  Kxb5 {[%clk 0:00:19]} 43. Kf5 {[%clk 0:00:07]}  Kc5 {[%clk 0:00:20]} 44. Kxf6 {[%clk 0:00:06]}  Kd6 {[%clk 0:00:21]} 45. Kg6 {[%clk 0:00:07]}  Ke7 {[%clk 0:00:21]} 46. Kxh6 {[%clk 0:00:08]}  Kf8 {[%clk 0:00:22]} 47. Kh7 {[%clk 0:00:08]}  Kf7 {[%clk 0:00:22]} 48. h5 {[%clk 0:00:09]}  Kf8 {[%clk 0:00:23]} 49. Kh8 {[%clk 0:00:10]}  Kf7 {[%clk 0:00:24]} 50. h6 {[%clk 0:00:10]}  Kf8 {[%clk 0:00:25]} 51. Kh7 {[%clk 0:00:11]}  Kf7 {[%clk 0:00:26]} 52. Kh8 {[%clk 0:00:12]}  Kf8 {[%clk 0:00:27]} 53. h7 {[%clk 0:00:12]}  Kf7 {[%clk 0:00:28]} 1/2-1/2


[Site "https://www.chess.com"]

[Event "Titled Tuesday Blitz June 6 Late 2023"]
[White "Jaracz, Pawel"]
[Black "Ozalp, Burak"]
[WhiteFideId "1102222"]
[BlackFideId "6314210"]
[WhiteElo "2454"]
[BlackElo "2106"]
[Result "1-0"]
[Round "1"]
[TimeControl "180+2"]
[Date "2023.06.07"]
[WhiteClock "0:00:46"]
[BlackClock "0:00:04"]
[Board "92"]

1. d4 {[%clk 0:02:57]}  Nf6 {[%clk 0:02:59]} 2. c4 {[%clk 0:02:57]}  g6 {[%clk 0:02:59]} 3. Nc3 {[%clk 0:02:56]}  Bg7 {[%clk 0:02:54]} 4. e4 {[%clk 0:02:56]}  d6 {[%clk 0:02:54]} 5. Nf3 {[%clk 0:02:54]}  O-O {[%clk 0:02:54]} 6. Be2 {[%clk 0:02:49]}  e5 {[%clk 0:02:53]} 7. O-O {[%clk 0:02:49]}  exd4 {[%clk 0:02:51]} 8. Nxd4 {[%clk 0:02:48]}  Re8 {[%clk 0:02:50]} 9. f3 {[%clk 0:02:46]}  c6 {[%clk 0:02:50]} 10. Kh1 {[%clk 0:02:46]}  Nbd7 {[%clk 0:02:37]} 11. Bf4 {[%clk 0:02:44]}  Nc5 {[%clk 0:02:25]} 12. Qd2 {[%clk 0:02:25]}  a5 {[%clk 0:02:05]} 13. Rad1 {[%clk 0:02:24]}  Nh5 {[%clk 0:01:46]} 14. Be3 {[%clk 0:02:19]}  Qh4 {[%clk 0:01:39]} 15. Bf2 {[%clk 0:02:17]}  Qf4 {[%clk 0:01:31]} 16. Qc2 {[%clk 0:02:11]}  a4 {[%clk 0:01:01]} 17. g3 {[%clk 0:02:10]}  Qf6 {[%clk 0:00:46]} 18. Be3 {[%clk 0:02:06]}  Bh3 {[%clk 0:00:45]} 19. Rf2 {[%clk 0:02:03]}  a3 {[%clk 0:00:11]} 20. b4 {[%clk 0:01:57]}  Ne6 {[%clk 0:00:10]} 21. Qd2 {[%clk 0:01:30]}  Nxd4 {[%clk 0:00:10]} 22. Bxd4 {[%clk 0:01:31]}  Qxd4 {[%clk 0:00:11]} 23. Qxd4 {[%clk 0:01:31]}  Bxd4 {[%clk 0:00:11]} 24. Rxd4 {[%clk 0:01:32]}  f5 {[%clk 0:00:11]} 25. Rxd6 {[%clk 0:01:30]}  Rad8 {[%clk 0:00:09]} 26. c5 {[%clk 0:01:27]}  fxe4 {[%clk 0:00:07]} 27. Nxe4 {[%clk 0:01:25]}  Rxd6 {[%clk 0:00:06]} 28. cxd6 {[%clk 0:01:20]}  Bf5 {[%clk 0:00:06]} 29. Bc4+ {[%clk 0:01:03]}  Kg7 {[%clk 0:00:06]} 30. Rd2 {[%clk 0:01:00]}  Bxe4 {[%clk 0:00:06]} 31. fxe4 {[%clk 0:01:00]}  Nf6 {[%clk 0:00:05]} 32. e5 {[%clk 0:00:55]}  Rxe5 {[%clk 0:00:04]} 33. d7 {[%clk 0:00:56]}  Re1+ {[%clk 0:00:04]} 34. Kg2 {[%clk 0:00:55]}  Nxd7 {[%clk 0:00:05]} 35. Rxd7+ {[%clk 0:00:55]}  Kh6 {[%clk 0:00:05]} 36. Rxb7 {[%clk 0:00:54]}  Rc1 {[%clk 0:00:05]} 37. Bb3 {[%clk 0:00:53]}  c5 {[%clk 0:00:05]} 38. Rc7 {[%clk 0:00:49]}  Rb1 {[%clk 0:00:02]} 39. Rxc5 {[%clk 0:00:47]}  Rxb3 {[%clk 0:00:03]} 40. axb3 {[%clk 0:00:47]}  a2 {[%clk 0:00:03]} 41. Ra5 {[%clk 0:00:47]}  a1=Q {[%clk 0:00:04]} 42. Rxa1 {[%clk 0:00:46]} 1-0


[Site "https://www.chess.com"]

[Event "Titled Tuesday Blitz June 6 Late 2023"]
[White "Sai Krishna G V"]
[Black "MrAnnihilation"]
[WhiteFideId "5028280"]
[WhiteElo "2359"]
[BlackElo "2401"]
[Result "1-0"]
[Round "1"]
[TimeControl "180+2"]
[Date "2023.06.07"]
[WhiteClock "0:00:31"]
[BlackClock "0:00:09"]
[Board "94"]

1. d4 {[%clk 0:02:50]}  Nf6 {[%clk 0:02:59]} 2. Nf3 {[%clk 0:02:47]}  e6 {[%clk 0:02:56]} 3. g3 {[%clk 0:02:48]}  b6 {[%clk 0:02:54]} 4. Bg2 {[%clk 0:02:49]}  Bb7 {[%clk 0:02:55]} 5. O-O {[%clk 0:02:50]}  c5 {[%clk 0:02:54]} 6. dxc5 {[%clk 0:02:47]}  Bxc5 {[%clk 0:02:53]} 7. b3 {[%clk 0:02:45]}  d5 {[%clk 0:02:39]} 8. Bb2 {[%clk 0:02:45]}  Nbd7 {[%clk 0:02:39]} 9. Nbd2 {[%clk 0:02:43]}  Qe7 {[%clk 0:02:33]} 10. c4 {[%clk 0:02:37]}  O-O {[%clk 0:02:26]} 11. cxd5 {[%clk 0:02:25]}  Bxd5 {[%clk 0:02:26]} 12. Qe1 {[%clk 0:02:22]}  Ne4 {[%clk 0:01:52]} 13. a3 {[%clk 0:02:08]}  a5 {[%clk 0:01:46]} 14. Rd1 {[%clk 0:01:52]}  Nxd2 {[%clk 0:01:06]} 15. Qxd2 {[%clk 0:01:53]}  Bxa3 {[%clk 0:00:49]} 16. e4 {[%clk 0:01:52]}  Bc6 {[%clk 0:00:46]} 17. Nd4 {[%clk 0:01:47]}  Bb7 {[%clk 0:00:39]} 18. Bxa3 {[%clk 0:01:46]}  Qxa3 {[%clk 0:00:38]} 19. Nb5 {[%clk 0:01:46]}  Qc5 {[%clk 0:00:33]} 20. Qxd7 {[%clk 0:01:41]}  Bc6 {[%clk 0:00:34]} 21. Qd6 {[%clk 0:01:30]}  Qxb5 {[%clk 0:00:31]} 22. Rd3 {[%clk 0:01:23]}  Rfc8 {[%clk 0:00:31]} 23. Rfd1 {[%clk 0:01:19]}  h6 {[%clk 0:00:27]} 24. Qe7 {[%clk 0:01:14]}  Qb4 {[%clk 0:00:15]} 25. Qxb4 {[%clk 0:01:06]}  axb4 {[%clk 0:00:16]} 26. Rd6 {[%clk 0:01:06]}  Ra3 {[%clk 0:00:14]} 27. Rc1 {[%clk 0:01:05]}  Rxb3 {[%clk 0:00:08]} 28. Rdxc6 {[%clk 0:01:04]}  Rxc6 {[%clk 0:00:09]} 29. Rxc6 {[%clk 0:01:04]}  Rc3 {[%clk 0:00:10]} 30. Rxb6 {[%clk 0:01:03]}  b3 {[%clk 0:00:10]} 31. e5 {[%clk 0:00:59]}  g5 {[%clk 0:00:11]} 32. Be4 {[%clk 0:00:57]}  Kg7 {[%clk 0:00:12]} 33. Kg2 {[%clk 0:00:57]}  g4 {[%clk 0:00:12]} 34. h3 {[%clk 0:00:57]}  h5 {[%clk 0:00:12]} 35. hxg4 {[%clk 0:00:57]}  hxg4 {[%clk 0:00:13]} 36. Bc6 {[%clk 0:00:54]}  Rc5 {[%clk 0:00:11]} 37. Be8 {[%clk 0:00:52]}  Rxe5 {[%clk 0:00:11]} 38. Rxb3 {[%clk 0:00:53]}  Rf5 {[%clk 0:00:12]} 39. Rb4 {[%clk 0:00:51]}  Rg5 {[%clk 0:00:12]} 40. Rf4 {[%clk 0:00:51]}  f5 {[%clk 0:00:10]} 41. Rb4 {[%clk 0:00:50]}  Kf6 {[%clk 0:00:10]} 42. Rb6 {[%clk 0:00:50]}  Rg7 {[%clk 0:00:09]} 43. Ba4 {[%clk 0:00:50]}  Re7 {[%clk 0:00:10]} 44. Bb3 {[%clk 0:00:50]}  Ke5 {[%clk 0:00:10]} 45. Kf1 {[%clk 0:00:50]}  Kf6 {[%clk 0:00:09]} 46. Ke2 {[%clk 0:00:50]}  Ke5 {[%clk 0:00:09]} 47. Ke3 {[%clk 0:00:50]}  Re8 {[%clk 0:00:09]} 48. Rb5+ {[%clk 0:00:49]}  Kf6 {[%clk 0:00:09]} 49. Rb6 {[%clk 0:00:39]}  Ke5 {[%clk 0:00:08]} 50. Ba4 {[%clk 0:00:36]}  Re7 {[%clk 0:00:08]} 51. Rb8 {[%clk 0:00:35]}  Kf6 {[%clk 0:00:08]} 52. Rf8+ {[%clk 0:00:32]}  Ke5 {[%clk 0:00:08]} 53. Re8 {[%clk 0:00:33]}  Rxe8 {[%clk 0:00:07]} 54. Bxe8 {[%clk 0:00:34]}  Kf6 {[%clk 0:00:07]} 55. Kd4 {[%clk 0:00:34]}  e5+ {[%clk 0:00:08]} 56. Kd5 {[%clk 0:00:33]}  f4 {[%clk 0:00:09]} 57. Bd7 {[%clk 0:00:31]} 1-0


[Site "https://www.chess.com"]